bitfinex-derivatives/quotes_SOLF0:USTF0_20260114
["timestamp","ask_amount","ask_price","bid_price","bid_amount"]
[1768428426719,6.1254,146.93,146.86,13.80575108]
[1768428427717,0.04832988,146.91,146.86,13.80575108]
[1768428429021,3.24237176,147.0,146.87,13.85080896]
[1768428429213,83.66237176,147.0,146.87,13.80575108]
[1768428429419,2.07522981,146.99,146.9,13.80575108]
[1768428430125,6.1228,147.0,146.93,13.85139168]
[1768428431112,0.04401353,146.98,146.93,13.85139168]
[1768428431311,0.04401353,146.98,146.93,0.0456406]
[1768428431512,0.04401353,146.98,146.93,13.85139168]
[1768428436727,0.04401353,146.98,146.93,19.97669168]
[1768428438727,6.1215,147.03,146.95,13.80575108]
[1768428439722,0.04416783,147.0,146.98,0.05027289]
[1768428440519,2.07522981,147.04,146.98,0.05027289]
[1768428440520,2.07522981,147.06,146.98,14.56260045]
[1768428440723,2.07522981,147.06,146.98,14.51232756]
[1768428441326,2.07522981,147.06,146.99,20.48247841]
[1768428442422,0.05013909,147.04,147.01,0.04361001]
[1768428445535,0.05013909,147.04,146.97,14.35967841]
[1768428446635,0.05013909,147.04,146.99,0.04949571]
[1768428453637,0.05013909,147.04,147.0,14.35967841]
[1768428456947,6.1195,147.07,147.01,14.35967841]
[1768428458147,0.04701404,147.05,147.03,0.04848932]
[1768428465845,6.1192,147.08,147.03,14.40816773]
[1768428466051,2.07522981,147.1,147.03,14.35967841]
[1768428467048,0.04635665,147.08,147.05,14.40558634]
[1768428470749,2.07522981,147.12,147.06,15.37880632]
[1768428470952,8.19252981,147.13,147.06,15.37880632]
[1768428471142,8.19252981,147.13,147.07,15.37880632]
[1768428471454,2.07522981,147.16,147.07,15.37880632]
[1768428471746,0.04505497,147.13,147.1,15.42338115]
[1768428472341,95.1026,147.21,147.1,15.42338115]
[1768428472542,2.07522981,147.18,147.1,15.37880632]
[1768428473249,6.1154,147.17,147.1,15.37880632]
[1768428473446,0.0523271,147.15,147.12,0.0485565]
[1768428474853,8.18992981,147.19,147.12,15.42736282]
[1768428475043,8.18992981,147.19,147.12,15.37880632]
[1768428475756,0.04846649,147.17,147.14,0.04648525]
[1768428484063,8.18922981,147.21,147.14,15.42529157]
[1768428484470,8.18832981,147.23,147.14,15.42529157]
[1768428484666,8.18832981,147.23,147.14,15.37880632]
[1768428485062,8.18832981,147.23,147.17,15.42985999]
[1768428485063,0.04518293,147.2,147.17,15.42985999]
[1768428485264,2.07522981,147.23,147.17,15.42985999]
[1768428485977,8.18822981,147.23,147.17,15.42985999]
[1768428486273,0.04389301,147.21,147.17,15.42985999]
[1768428490574,2.11912282,147.21,147.15,15.37880632]
[1768428491279,0.04389301,147.21,147.15,15.37880632]
[1768428491776,0.04389301,147.21,147.17,0.04988485]
[1768428493577,3.27621179,147.21,147.15,15.37880632]
[1768428494670,3.27621179,147.21,147.17,0.04568364]
[1768428495074,9.39021179,147.21,147.17,0.04568364]
[1768428495579,6.1142,147.2,147.17,0.04568364]
[1768428498580,0.04389301,147.21,147.17,0.04568364]
[1768428500080,6.15759301,147.21,147.17,0.04568364]
[1768428501079,6.1142,147.2,147.17,0.04568364]
[1768428501283,3.27621179,147.21,147.13,14.29960347]
[1768428501478,3.23231878,147.21,147.13,14.29960347]
[1768428501879,3.23231878,147.23,147.13,14.29960347]
[1768428502277,3.23231878,147.23,147.17,14.34288011]
[1768428502581,6.1131,147.23,147.17,14.34288011]
[1768428503277,0.04697244,147.21,147.17,14.34288011]
[1768428503480,0.04697244,147.21,147.18,14.29960347]
[1768428503678,9.34471878,147.25,147.18,14.29960347]
[1768428503880,3.23231878,147.25,147.18,14.29960347]
[1768428504274,3.23231878,147.26,147.19,14.29960347]
[1768428504785,0.04843949,147.24,147.21,0.04347435]
[1768428505088,6.113,147.23,147.19,14.29960347]
[1768428507175,6.113,147.23,147.2,0.04777627]
[1768428508076,6.1133,147.22,147.16,14.29960347]
[1768428508482,6.1133,147.22,147.12,95.1556]
[1768428508483,3.23231878,147.22,147.13,14.29960347]
[1768428508682,6.1145,147.19,147.13,14.29960347]
[1768428509183,0.04575335,147.17,147.15,0.04365217]
[1768428520190,0.04575335,147.17,147.1,14.29960347]
[1768428520391,3.23231878,147.16,147.1,14.29960347]
[1768428520587,6.1163,147.15,147.1,14.29960347]
[1768428520793,6.1163,147.15,147.05,14.29960347]
[1768428521190,6.1163,147.15,147.09,14.34995573]
[1768428522294,0.04520914,147.13,147.09,14.34995573]
[1768428525895,0.04520914,147.13,147.09,0.05035226]
[1768428527796,6.1175,147.12,147.09,0.05035226]
[1768428529596,6.1175,147.12,147.07,14.29960347]
[1768428529597,6.1185,147.1,147.02,14.29960347]
[1768428530698,0.04573824,147.07,147.05,0.043114]
[1768428534209,6.1185,147.1,147.05,0.043114]
[1768428535302,0.05019905,147.09,147.05,0.043114]
[1768428539011,6.16889905,147.09,147.05,0.043114]
[1768428540312,6.16889905,147.09,146.98,95.2476]
[1768428540313,3.28251783,147.09,147.01,15.58797152]
[1768428540515,3.23231878,147.09,147.01,15.58797152]
[1768428541309,0.04606768,147.06,147.04,0.04587981]
[1768428541510,0.04606768,147.06,147.01,15.58797152]
[1768428541911,6.16616768,147.06,147.01,15.58797152]
[1768428542115,0.04606768,147.06,147.01,15.58797152]
[1768428542307,3.23231878,147.09,147.01,15.58797152]
[1768428542507,6.1191,147.08,147.02,21.70947152]
[1768428543313,0.0457861,147.06,147.04,0.04891493]
[1768428550012,0.0457861,147.06,147.02,15.58797152]
[1768428551109,0.0457861,147.06,147.03,0.04588051]
[1768428552217,0.0457861,147.06,147.01,15.58797152]
[1768428553116,0.0457861,147.06,147.02,0.05036753]
[1768428557122,0.0457861,147.06,147.02,15.63833905]
[1768428559232,0.0457861,147.06,147.02,0.05036753]
[1768428560926,6.1656861,147.06,147.02,0.05036753]
[1768428563538,0.0457861,147.06,147.02,0.05036753]
[1768428565036,0.0457861,147.06,147.02,15.65442604]
[1768428568249,6.1657861,147.06,147.0,15.60405851]
[1768428569435,6.1657861,147.06,147.02,0.05132753]
[1768428574242,0.0457861,147.06,147.02,15.65538604]
[1768428588553,6.1656861,147.06,147.02,0.05132753]
[1768428588755,8.23878081,147.06,147.0,15.60405851]
[1768428589553,6.1656861,147.06,147.0,15.60405851]
[1768428589755,6.1656861,147.06,147.02,0.04752296]
[1768428597656,6.1206,147.05,147.0,15.60405851]
[1768428598855,6.1206,147.05,147.01,0.04751607]
[1768428600450,0.0457861,147.06,147.01,0.04751607]
[1768428600760,6.1208,147.04,147.0,15.60405851]
[1768428601756,6.1208,147.04,147.01,0.0512976]
[1768428605665,6.1213,147.03,146.98,14.38137421]
[1768428606763,0.05126112,147.02,146.99,0.04795994]
[1768428607063,285.3391,147.2,146.99,14.42933415]
[1768428607261,95.1542,147.13,147.02,14.38137421]
[1768428607463,2.07309471,147.11,147.02,14.38137421]
[1768428607663,2.07309471,147.09,147.02,14.38137421]
[1768428607861,6.1195,147.07,147.02,14.38137421]
[1768428608366,0.04656079,147.06,147.03,0.04692036]
[1768428613260,0.04656079,147.06,147.0,16.45446892]
[1768428614164,0.04656079,147.06,147.02,0.04908589]
[1768428614562,6.16656079,147.06,147.02,0.04908589]
[1768428626071,6.1203,147.05,146.99,6.1227]
[1768428631177,0.04656079,147.06,146.98,14.5505905]
[1768428631382,0.0516454,147.03,146.98,14.5505905]
[1768428632684,0.0516454,147.03,146.98,20.6737905]
[1768428635882,0.0516454,147.03,146.98,14.5505905]
[1768428640190,0.0516454,147.03,146.98,20.6737905]
[1768428640486,3.23917549,147.09,146.99,14.60054688]
[1768428640677,80.36,147.1,146.99,14.5505905]
[1768428641486,0.04352756,147.06,147.03,0.04475302]
[1768428642286,6.1198,147.07,147.03,14.59534352]
[1768428643389,0.05215396,147.06,147.03,14.59534352]
[1768428652908,178.77187549,147.11,147.03,14.59534352]
[1768428653811,6.1191,147.08,147.03,14.59534352]
[1768428654017,3.23917549,147.14,147.04,15.53301552]
[1768428654307,80.36,147.13,147.04,15.53301552]
[1768428654609,6.1183,147.1,147.04,15.53301552]
[1768428655009,0.05176611,147.08,147.06,0.04932091]
[1768428660614,0.05176611,147.08,147.02,15.53301552]
[1768428660814,3.23917549,147.1,147.02,15.53301552]
[1768428661407,0.04735559,147.07,147.02,15.53301552]
[1768428662417,0.04735559,147.07,147.03,0.04840551]
[1768428663313,0.04735559,147.07,147.03,15.58142103]
[1768428663912,6.16695559,147.07,147.03,0.04840551]
[1768428664512,3.23917549,147.06,146.99,15.53301552]
[1768428664721,3.23917549,147.06,146.97,15.53301552]
[1768428665514,0.05141183,147.03,147.0,0.04675883]
[1768428667613,6.17271183,147.03,147.0,0.04675883]
[1768428667922,6.17271183,147.03,146.97,15.53301552]
[1768428669022,0.05141183,147.03,146.97,15.53301552]
[1768428669719,6.17291183,147.03,146.97,15.53301552]
[1768428670620,6.1216,147.02,146.97,15.53301552]
[1768428675530,8.19596709,147.02,146.97,15.53301552]
[1768428675725,8.19676709,147.0,146.94,15.53301552]
[1768428675922,0.04938243,146.98,146.94,15.53301552]
[1768428676626,6.1224,147.0,146.94,15.53301552]
[1768428676831,2.07436709,147.07,146.98,17.60738261]
[1768428677031,2.07436709,147.08,146.98,17.60738261]
[1768428677832,0.04488029,147.04,147.02,0.04465722]
[1768428682735,6.12,147.06,147.02,14.47177115]
[1768428683837,0.04841487,147.05,147.02,14.47177115]
[1768428686734,95.1485,147.14,147.02,17.90613824]
[1768428686928,2.07436709,147.13,147.02,16.50148102]
[1768428687135,2.07436709,147.13,147.05,14.42711393]
[1768428687631,0.04410395,147.1,147.08,0.04378462]
[1768428687836,2.07436709,147.14,147.08,14.42711393]
[1768428688835,0.04725861,147.12,147.08,14.42711393]
[1768428689936,0.04725861,147.12,147.09,0.04331139]
[1768428703648,8.2392257,147.12,147.05,14.42711393]
[1768428703954,2.1216257,147.12,147.05,14.42711393]
[1768428704155,6.1179,147.11,147.05,14.42711393]
[1768428704750,6.1179,147.11,147.07,0.04553843]
[1768428706053,2.07436709,147.1,147.07,0.04553843]
[1768428706257,2.07436709,147.08,147.03,14.42711393]
[1768428707252,0.04699697,147.07,147.04,0.05224116]
[1768428712462,2.07436709,147.06,147.03,14.42711393]
[1768428715262,8.19426709,147.06,146.98,6.1229]
[1768428715456,8.19426709,147.06,146.97,82.41436709]
[1768428715457,0.04511096,147.03,146.97,80.34]
[1768428715659,0.04511096,147.03,146.93,80.34]
[1768428715660,2.07436709,147.02,146.93,80.34]
[1768428716850,8.19606709,147.02,146.95,6.1242]
[1768428717060,8.19606709,147.02,146.96,0.05131905]
[1768428717261,8.19606709,147.02,146.97,15.67377025]
[1768428718064,0.04459352,147.01,146.97,15.67377025]
[1768428722770,6.16669352,147.01,146.97,15.67377025]
[1768428723067,0.04459352,147.01,146.97,15.67377025]
[1768428729877,6.1206,147.05,146.97,15.67377025]
[1768428730081,2.07436709,147.06,146.97,15.67377025]
[1768428730672,2.07436709,147.06,146.98,6.1231]
[1768428730877,2.07436709,147.06,146.99,15.67377025]
[1768428731974,0.04478305,147.04,147.01,0.04380543]
[1768428732185,0.04478305,147.04,147.01,15.71757568]
[1768428733084,19.66718612,147.07,147.01,15.71757568]
[1768428733284,13.70675408,147.04,146.94,15.67377025]
[1768428733481,15.78112117,147.02,146.94,15.67377025]
[1768428733876,2.07436709,147.0,146.94,15.67377025]
[1768428734278,2.07436709,146.98,146.94,15.67377025]
[1768428734474,0.04807758,146.98,146.94,15.67377025]
[1768428735385,0.04807758,146.98,146.95,0.04552716]
[1768428735787,0.04807758,146.98,146.95,15.71929741]
[1768428737086,23.15275586,147.03,146.95,15.71929741]
[1768428737291,17.03125586,147.03,146.95,15.71929741]
[1768428737985,0.0446669,147.0,146.95,15.71929741]
[1768428746486,14.18964915,147.06,146.96,15.57760663]
[1768428747596,0.04987653,147.02,147.0,0.05236025]
[1768428749291,0.04987653,147.02,146.99,15.57760663]
[1768428750298,0.04987653,147.02,146.99,0.04777565]
[1768428750597,0.04987653,147.02,146.96,15.57760663]
[1768428751490,0.04987653,147.02,146.98,0.04950643]
[1768428751991,0.04987653,147.02,146.98,15.62711306]
[1768428755097,14.44130315,147.13,146.99,3.24199993]
[1768428755397,14.44130315,147.12,147.02,15.57760663]
[1768428756096,0.04544033,147.08,147.06,0.04690552]
[1768428759392,0.04544033,147.08,147.03,15.57760663]
[1768428759892,14.52512911,147.07,147.0,15.57760663]
[1768428760400,14.54573855,147.05,146.95,15.57760663]
[1768428760599,0.04886789,147.02,146.99,0.04502858]
[1768428780316,21.11154327,147.02,146.95,15.79626695]
[1768428780519,21.06267538,147.02,146.95,15.79626695]
[1768428781415,0.04689355,147.0,146.97,0.04341617]
[1768428783312,104.68417531,147.04,146.97,15.83968312]
[1768428783517,14.94107538,147.01,146.97,0.04341617]
[1768428783711,14.94107538,147.01,146.93,15.79626695]
[1768428783919,21.06337538,147.01,146.93,21.92156695]
[1768428784215,21.06337538,147.01,146.94,15.79626695]
[1768428784615,0.0476338,146.99,146.94,15.79626695]
[1768428785416,0.0476338,146.99,146.95,0.05076363]
[1768428785914,0.0476338,146.99,146.95,15.84703058]
[1768428789717,0.0476338,146.99,146.95,0.05076363]
[1768428790825,6.1704338,146.99,146.95,0.05076363]
[1768428795420,21.11150918,146.99,146.95,0.05076363]
[1768428796616,21.11150918,146.99,146.93,15.79626695]
[1768428797017,14.98870918,146.99,146.93,15.79626695]
[1768428797421,2.07560126,146.98,146.93,15.79626695]
[1768428797617,2.07560126,146.98,146.91,15.79626695]
[1768428797618,17.01667664,146.98,146.91,15.79626695]
[1768428798625,0.04960576,146.96,146.91,15.79626695]
[1768428799419,14.94107538,146.95,146.91,15.79626695]
[1768428799626,14.94107538,146.95,146.89,15.79626695]
[1768428799819,0.04391327,146.93,146.89,15.79626695]
[1768428812934,0.04391327,146.93,146.89,21.92326695]
[1768428813232,0.04391327,146.93,146.9,16.04462597]
[1768428819935,15.49029842,146.93,146.87,16.04462597]
[1768428821441,0.04391327,146.93,146.87,16.04462597]
[1768428822741,0.04391327,146.93,146.88,16.04462597]
[1768428826037,6.16921327,146.93,146.88,16.04462597]
[1768428829144,21.70752024,146.93,146.88,16.04462597]
[1768428829446,0.04391327,146.93,146.88,16.04462597]
[1768428830841,6.16921327,146.93,146.88,16.04462597]
[1768428840356,6.1257,146.92,146.88,16.04462597]
[1768428840654,17.73144111,146.92,146.85,16.39228617]
[1768428840858,0.0469127,146.9,146.85,16.39228617]
[1768428841157,2.12251396,146.9,146.85,16.39228617]
[1768428841855,0.0469127,146.9,146.85,16.39228617]
[1768428842760,6.1736127,146.9,146.85,16.39228617]
[1768428847371,21.87705879,146.9,146.85,16.39228617]
[1768428847877,21.87705879,146.9,146.8,80.44]
[1768428847878,6.127,146.89,146.84,16.39228617]
[1768428848066,0.0481153,146.88,146.84,16.39228617]
[1768428852878,6.1266,146.9,146.84,16.39228617]
[1768428853981,0.04700506,146.88,146.86,0.04927303]
[1768428862489,178.96724853,146.94,146.86,16.00052614]
[1768428862490,15.79350772,146.94,146.86,16.00052614]
[1768428863485,0.04762387,146.91,146.86,16.00052614]
[1768428863788,0.04762387,146.91,146.86,22.12862614]
[1768428864089,0.04762387,146.91,146.87,15.95125311]
[1768428871088,15.84113159,146.91,146.86,0.04927303]
[1768428871491,6.127,146.89,146.86,0.04927303]
[1768428871700,6.127,146.89,146.8,83.68614853]
[1768428871701,15.79350772,146.9,146.83,15.95125311]
[1768428872590,0.04859403,146.88,146.85,0.04531652]
[1768428875701,83.68614853,146.92,146.85,15.99656963]
[1768428875702,96.23350772,146.92,146.85,15.99656963]
[1768428876196,6.1266,146.9,146.85,15.99656963]
[1768428876400,15.79350772,146.92,146.85,15.99656963]
[1768428876600,0.04509238,146.9,146.85,15.99656963]
[1768428892414,6.1277,146.88,146.85,0.04531652]
[1768428892714,16.06251853,146.9,146.83,16.7825826]
[1768428892912,16.01742615,146.9,146.83,16.7825826]
[1768428893610,0.05113697,146.88,146.83,16.7825826]
[1768428896716,0.05113697,146.88,146.84,16.83284971]
[1768428902619,6.17853697,146.88,146.84,16.83284971]
[1768428903113,6.127,146.89,146.84,16.83284971]
[1768428903316,3.24614853,146.96,146.84,16.83284971]
[1768428903524,16.26846403,146.95,146.84,16.7825826]
[1768428904322,0.05196683,146.91,146.88,0.05025105]
[1768428910135,16.32043086,146.91,146.85,16.7825826]
[1768428911835,6.1267,146.9,146.85,16.7825826]
[1768428922540,18.39814883,146.91,146.85,16.7825826]
[1768428922541,6.1275,146.88,146.85,6.5030826]
[1768428922746,6.17338256,146.88,146.85,6.5030826]
[1768428923149,0.04588256,146.88,146.85,6.5030826]
[1768428927845,6.1261,146.92,146.85,6.5030826]
[1768428928948,0.04639551,146.9,146.87,16.54225233]
[1768428929346,2.07771797,146.93,146.87,16.54225233]
[1768428929742,6.1253,146.94,146.87,16.54225233]
[1768428929946,8.20211797,146.96,146.89,16.49345409]
[1768428930149,6.1244,146.96,146.89,16.49345409]
[1768428930346,0.04398667,146.94,146.91,0.04292042]
[1768428930546,0.04398667,146.94,146.91,16.53637451]
[1768428932152,16.61563184,146.94,146.89,16.49345409]
[1768428932342,16.57164517,146.94,146.89,16.49345409]
[1768428933143,0.0446603,146.93,146.9,0.04683487]
[1768428933752,18.64936314,146.92,146.86,16.49345409]
[1768428933950,16.57164517,146.89,146.81,16.49345409]
[1768428934253,2.07771797,146.9,146.81,16.49345409]
[1768428934544,6.1273,146.89,146.83,16.49345409]
[1768428934951,18.64936314,146.91,146.83,16.49345409]
[1768428935151,6.1266,146.9,146.84,16.49345409]
[1768428935853,0.04611213,146.88,146.86,0.04368594]
[1768428939555,0.04611213,146.88,146.84,16.49345409]
[1768428942453,0.04611213,146.88,146.82,16.49345409]
[1768428942658,16.6177573,146.88,146.82,16.49345409]
[1768428943552,0.04611213,146.88,146.82,16.49345409]
[1768428944763,0.04611213,146.88,146.82,22.62335409]
[1768428944957,0.04611213,146.88,146.82,18.57117206]
[1768428945765,0.04611213,146.88,146.84,16.49345409]
[1768428961473,0.04611213,146.88,146.82,16.25837304]
[1768428961677,16.57550705,146.88,146.82,16.25837304]
[1768428962070,2.07771797,146.87,146.82,16.25837304]
[1768428962275,18.60711289,146.87,146.8,16.25837304]
[1768428962476,18.65293437,146.85,146.78,16.25837304]
[1768428962678,2.12725594,146.83,146.78,16.25837304]
[1768428962871,2.12725594,146.83,146.74,80.46]
[1768428963069,0.04724773,146.8,146.74,80.46]
[1768428963479,0.04724773,146.8,146.74,86.593]
[1768428963679,2.07771797,146.83,146.74,83.89771797]
[1768428963880,2.07771797,146.83,146.74,82.53771797]
[1768428964275,16.52939492,146.84,146.74,82.53771797]
[1768428964587,0.04288594,146.8,146.78,0.05180286]
[1768428964878,16.52939492,146.84,146.78,16.3101759]
[1768428965679,8.20651797,146.85,146.78,16.3101759]
[1768428965879,0.0455537,146.83,146.78,16.3101759]
[1768428967483,18.65266659,146.83,146.78,0.05180286]
[1768428968588,24.78246659,146.83,146.78,0.05180286]
[1768428970690,18.65266659,146.83,146.78,0.05180286]
[1768428971888,2.12327167,146.83,146.78,16.3101759]
[1768428979297,0.0455537,146.83,146.78,16.3101759]
[1768428989097,20.36134968,146.9,146.78,16.3101759]
[1768428989299,17.11202918,146.89,146.78,16.25837304]
[1768428990003,0.04899318,146.85,146.82,17.52917524]
[1768428992303,23.23942918,146.89,146.83,17.48217988]
[1768428992701,17.11202918,146.89,146.83,17.48217988]
[1768428993406,0.04334763,146.87,146.83,17.48217988]
[1768428993707,17.15537681,146.87,146.82,0.04699536]
[1768428994412,17.15537681,146.87,146.82,17.52917524]
[1768428996606,23.24042918,146.86,146.82,0.04699536]
[1768429007117,17.11202918,146.86,146.82,0.04699536]
[1768429007616,0.04334763,146.87,146.82,17.52917524]
[1768429010818,23.47169208,146.87,146.82,17.52917524]
[1768429017920,23.42884445,146.86,146.82,0.04699536]
[1768429018319,0.04334763,146.87,146.8,18.51278051]
[1768429019222,0.04334763,146.87,146.82,0.04832772]
[1768429019427,0.04327298,146.86,146.82,0.04832772]
[1768429020928,0.04327298,146.86,146.82,18.56110823]
[1768429021831,0.04327298,146.86,146.82,24.69100823]
[1768429022131,17.30044445,146.9,146.83,18.51278051]
[1768429022827,17.30044445,146.9,146.84,18.51278051]
[1768429023121,0.047214,146.88,146.86,0.04870128]
[1768429028927,23.42654445,146.92,146.86,18.56148179]
[1768429029119,17.30044445,146.92,146.86,18.51278051]
[1768429029322,17.30044445,146.88,146.82,18.51278051]
[1768429029525,20.54976495,146.88,146.82,18.51278051]
[1768429029826,0.05137083,146.86,146.84,0.04562879]
[1768429030030,0.05137083,146.86,146.82,18.51278051]
[1768429030726,0.05137083,146.86,146.8,6.1303]
[1768429030930,0.05137083,146.86,146.8,24.64308051]
[1768429031142,0.05137083,146.86,146.82,0.04292111]
[1768429032734,0.05137083,146.86,146.82,18.55570162]
[1768429033633,0.05137083,146.86,146.82,24.68560162]
[1768429036635,23.42734445,146.9,146.84,18.51278051]
[1768429037334,17.30044445,146.9,146.8,18.51278051]
[1768429037634,17.30044445,146.9,146.84,0.0457765]
[1768429037635,0.04871358,146.86,146.84,0.0457765]
[1768429038136,17.30044445,146.9,146.84,0.0457765]
[1768429038334,6.1271,146.89,146.84,0.0457765]
[1768429038821,23.42754445,146.89,146.84,0.0457765]
[1768429039022,23.42794445,146.88,146.84,0.0457765]
[1768429039228,17.30044445,146.87,146.81,18.51278051]
[1768429039634,23.42824445,146.87,146.81,18.51278051]
[1768429040240,0.04501582,146.85,146.83,0.04424812]
[1768429040835,0.04501582,146.85,146.81,18.51278051]
[1768429041737,0.04501582,146.85,146.82,0.04881361]
[1768429045735,0.04501582,146.85,146.82,17.7553225]
[1768429045941,19.61871341,146.91,146.82,17.7553225]
[1768429046144,19.61871341,146.91,146.82,17.70650889]
[1768429046840,0.05161847,146.88,146.85,0.04304963]
[1768429056950,17.59154481,146.88,146.83,6.1294]
[1768429058053,17.59154481,146.88,146.84,0.04365856]
[1768429071662,19.67033188,146.88,146.8,24.83545227]
[1768429071866,19.67033188,146.88,146.8,18.70495227]
[1768429072070,2.07878707,146.86,146.8,18.70495227]
[1768429072766,0.04691295,146.84,146.82,0.04772128]
[1768429076563,8.20678707,146.87,146.82,18.75267355]
[1768429076564,17.52550485,146.87,146.82,18.75267355]
[1768429077565,0.04465366,146.86,146.82,18.75267355]
[1768429077955,0.04465366,146.86,146.82,0.04772128]
[1768429080768,23.69845851,146.86,146.82,0.04772128]
[1768429081364,17.52550485,146.85,146.82,0.04772128]
[1768429082966,0.04465366,146.86,146.82,18.75267355]
[1768429084968,0.04465366,146.86,146.82,0.04772128]
[1768429088071,17.57015851,146.86,146.82,0.04772128]
[1768429091180,19.64894558,146.86,146.78,18.70495227]
[1768429091476,19.60429192,146.86,146.78,18.70495227]
[1768429091670,6.1291,146.84,146.78,18.70495227]
[1768429092072,0.04400685,146.82,146.8,0.04311539]
[1768429098384,17.5695117,146.82,146.77,86.5919]
[1768429099286,17.5695117,146.82,146.78,0.04950367]
[1768429121098,17.96839536,146.84,146.79,18.15384627]
[1768429122094,0.05047443,146.83,146.79,18.15384627]
[1768429126495,17.96839536,146.87,146.8,18.15384627]
[1768429127588,0.048555,146.85,146.82,0.04436858]
[1768429138509,19.54031739,146.84,146.78,24.838179]
[1768429139002,19.54031739,146.82,146.76,18.706779]
[1768429139506,0.04755943,146.8,146.78,0.04552366]
[1768429141509,0.04755943,146.8,146.76,18.706779]
[1768429142610,0.04755943,146.8,146.77,0.04318004]
[1768429143105,19.58787682,146.8,146.77,0.04318004]
[1768429143312,19.58787682,146.8,146.74,18.706779]
[1768429144205,19.58787682,146.8,146.76,0.04464707]
[1768429144606,19.54031739,146.79,146.73,6.1333]
[1768429144912,19.54031739,146.79,146.73,18.706779]
[1768429145706,0.04755943,146.8,146.73,18.706779]
[1768429145707,0.04755943,146.8,146.75,18.7453136]
[1768429145909,19.54031739,146.83,146.75,18.7453136]
[1768429146107,19.54031739,146.83,146.75,18.706779]
[1768429146812,19.54031739,146.83,146.76,6.1323]
[1768429147013,0.04367827,146.81,146.78,0.05176426]
[1768429148406,19.54031739,146.85,146.78,18.75854326]
[1768429148609,19.54031739,146.85,146.78,18.706779]
[1768429149416,19.59021579,146.83,146.8,0.04470779]
[1768429154121,19.59021579,146.83,146.77,6.1325]
[1768429155222,19.59021579,146.83,146.79,0.04510133]
[1768429190757,0.0498984,146.83,146.79,18.15027914]
[1768429190962,19.8568799,146.87,146.79,18.15027914]
[1768429191261,19.8568799,146.87,146.8,20.18469336]
[1768429191672,19.8568799,146.87,146.83,6.1301]
[1768429191965,0.0457867,146.86,146.84,0.0510459]
[1768429192153,19.8568799,146.87,146.84,0.0510459]
[1768429193366,19.90813924,146.87,146.84,0.0510459]
[1768429199571,1.89611756,146.87,146.84,6.1806459]
[1768429202874,0.05125934,146.87,146.85,6.1292]
[1768429203261,0.05125934,146.87,146.84,20.23573926]
[1768429203465,19.8568799,146.91,146.87,6.1283]
[1768429204369,19.8568799,146.91,146.88,0.04596297]
[1768429204575,8.20411555,146.97,146.89,6.1276]
[1768429205572,8.20411555,146.97,146.87,18.10517781]
[1768429205573,0.04641648,146.94,146.92,0.04539154]
[1768429205867,0.05056964,146.94,146.92,0.04298435]
[1768429209171,19.90744954,146.94,146.92,0.04298435]
[1768429210580,19.90744954,146.94,146.89,6.1273]
[1768429211579,19.90744954,146.94,146.9,0.04288014]
[1768429214977,0.05056964,146.94,146.9,24.27515795]
[1768429215584,0.00758529,146.94,146.9,24.27515795]
[1768429218084,0.00758529,146.94,146.91,18.10517781]
[1768429219788,0.00758529,146.94,146.92,6.1262]
[1768429235096,20.41497514,147.0,146.94,20.29199082]
[1768429235699,20.41497514,147.02,146.95,20.29199082]
[1768429236202,0.04530163,147.0,146.97,0.05217845]
[1768429236802,20.41497514,147.02,146.97,0.05217845]
[1768429237897,0.04754729,147.01,146.97,0.05217845]
[1768429238702,20.46252243,147.01,146.97,0.05217845]
[1768429259113,26.58462243,147.01,146.97,0.05217845]
[1768429259419,23.70517533,147.01,146.93,20.91566442]
[1768429259621,23.70517533,147.01,146.92,80.42]
[1768429259811,19.91116109,146.98,146.92,86.5457]
[1768429260014,19.91116109,146.98,146.92,107.46136442]
[1768429260216,0.05100132,146.96,146.94,0.04564573]
[1768429264122,19.96216241,146.96,146.89,101.31566442]
[1768429264316,19.96216241,146.96,146.9,20.91566442]
[1768429264911,19.96216241,146.96,146.92,0.0443093]
[1768429265625,0.05100132,146.96,146.92,20.95997372]
[1768429267025,19.91116109,147.02,146.92,24.20262662]
[1768429267225,19.91116109,147.02,146.92,24.15831732]
[1768429267815,19.91116109,147.01,146.94,20.91566442]
[1768429268023,19.95644104,146.99,146.92,20.91566442]
[1768429268228,19.95644104,146.99,146.94,0.04506474]
[1768429268522,23.19909394,146.99,146.9,20.91566442]
[1768429268715,23.15381399,146.99,146.9,20.91566442]
[1768429269324,19.91116109,146.95,146.9,20.91566442]
[1768429269627,0.04618697,146.94,146.9,20.91566442]
[1768429270524,0.04618697,146.94,146.89,80.4]
[1768429270732,19.95734806,146.94,146.91,0.04825428]
[1768429271736,0.04618697,146.94,146.91,0.04825428]
[1768429274628,19.95734806,146.94,146.91,0.04825428]
[1768429274833,19.95734806,146.94,146.89,20.91566442]
[1768429275231,0.04618697,146.94,146.89,20.91566442]
[1768429275936,0.04618697,146.94,146.9,0.04937192]
[1768429281740,20.96224829,146.91,146.84,27.73493034]
[1768429281945,24.20490119,146.91,146.8,21.60583034]
[1768429282436,20.96224829,146.88,146.8,21.60583034]